bitfinex/quotes_BTCUSD_20250204
["timestamp","ask_amount","ask_price","bid_price","bid_amount"]
[1738703402915,0.00222408,98037.0,98036.0,0.25539006]
[1738703403653,0.00022408,98037.0,98036.0,0.25539006]
[1738703403899,0.00022408,98037.0,98036.0,0.34312997]
[1738703404322,0.00022408,98037.0,98036.0,0.49312997]
[1738703404659,2e-07,98040.0,98039.0,0.303]
[1738703404864,2e-07,98040.0,98039.0,0.40538506]
[1738703405085,2e-07,98040.0,98039.0,0.50787978]
[1738703405511,7e-05,98063.0,98062.0,0.152964]
[1738703405738,7e-05,98063.0,98062.0,0.25534906]
[1738703406988,7e-05,98063.0,98062.0,0.25550277]
[1738703407194,7e-05,98063.0,98062.0,0.36472667]
[1738703407525,7e-05,98063.0,98062.0,0.36572667]
[1738703407748,0.01007,98063.0,98062.0,0.10653877]
[1738703407947,0.02007,98063.0,98062.0,0.00415371]
[1738703408365,0.02007,98063.0,98062.0,0.00115371]
[1738703408570,0.02007,98063.0,98062.0,0.00315371]
[1738703408769,0.02007,98063.0,98062.0,0.00015371]
[1738703408994,0.19478661,98063.0,98062.0,0.00015371]
[1738703409207,0.19578661,98063.0,98062.0,0.00015371]
[1738703409415,0.02259965,98063.0,98062.0,0.00015371]
[1738703409623,0.02107,98063.0,98062.0,0.00015371]
[1738703409830,0.16095819,98063.0,98062.0,0.00015371]
[1738703410035,0.13348791,98063.0,98062.0,0.00115371]
[1738703410242,0.17957313,98063.0,98062.0,0.00115371]
[1738703410449,0.01007,98063.0,98062.0,0.00115371]
[1738703410651,7e-05,98063.0,98062.0,0.00015371]
[1738703410866,0.01007,98063.0,98062.0,0.00015371]
[1738703411075,0.00307,98063.0,98062.0,0.12295054]
[1738703411481,0.01107,98063.0,98062.0,0.12395054]
[1738703411684,0.01107,98063.0,98062.0,0.13246039]
[1738703411891,0.00307,98063.0,98062.0,0.11204862]
[1738703412096,0.00407,98063.0,98062.0,0.10253877]
[1738703412725,0.00407,98063.0,98062.0,0.10653877]
[1738703412928,7e-05,98063.0,98062.0,0.10253877]
[1738703413105,7e-05,98063.0,98062.0,0.18927735]
[1738703413306,7e-05,98063.0,98062.0,0.19127735]
[1738703413515,0.00207,98063.0,98062.0,0.10453877]
[1738703413880,0.00958473,98097.0,98062.0,0.10453877]
[1738703414080,0.08158811,98085.0,98063.0,0.10238506]
[1738703414276,0.152957,98067.0,98063.0,0.10238506]
[1738703414490,0.00152931,98084.0,98062.0,0.00215371]
[1738703414805,0.01133386,98084.0,98062.0,0.00215371]
[1738703415010,0.00152931,98084.0,98065.0,0.152959]
[1738703415232,0.00152931,98084.0,98066.0,0.01541127]
[1738703415435,0.15,98087.0,98062.0,0.00115371]
[1738703415635,0.00974311,98090.0,98067.0,0.10238506]
[1738703415833,0.009,98085.0,98068.0,0.01035388]
[1738703416173,0.0552,98092.0,98069.0,0.10238506]
[1738703416375,0.008,98092.0,98090.0,0.15292]
[1738703416601,0.009,98084.0,98083.0,0.152931]
[1738703416804,0.018,98084.0,98083.0,0.25531606]
[1738703417010,0.018,98084.0,98073.0,0.02077677]
[1738703417211,0.009,98084.0,98074.0,0.30631006]
[1738703417441,0.009,98084.0,98063.0,0.20395]
[1738703417576,0.009,98084.0,98064.0,0.12279543]
[1738703417773,0.152928,98086.0,98077.0,0.152941]
[1738703417974,0.002,98092.0,98064.0,0.12279543]
[1738703418201,0.152927,98086.0,98064.0,0.12279543]
[1738703418410,0.152929,98085.0,98075.0,0.152943]
[1738703418613,0.00022408,98117.0,98076.0,0.11767936]
[1738703418815,0.08158811,98091.0,98064.0,0.02041037]
[1738703418991,0.152936,98080.0,98064.0,0.203947]
[1738703419188,0.00152924,98090.0,98064.0,0.203947]
[1738703419189,0.203896,98089.0,98064.0,0.003]
[1738703419386,0.00152941,98088.0,98065.0,0.152959]
[1738703419613,0.00152941,98088.0,98062.0,0.00015371]
[1738703419816,0.01515294,98088.0,98076.0,0.001]
[1738703419989,0.373141,98077.0,98076.0,0.001]
[1738703420202,0.55502606,98077.0,98076.0,0.001]
[1738703420633,0.429641,98077.0,98076.0,0.001]
[1738703421251,0.429641,98077.0,98062.0,0.00115371]
[1738703421252,0.15,98075.0,98062.0,0.00015371]
[1738703421457,0.152955,98068.0,98064.0,0.001]
[1738703421665,0.203923,98076.0,98064.0,0.001]
[1738703421872,0.203925,98075.0,98063.0,0.152961]
[1738703422081,0.152953,98069.0,98062.0,0.00015371]
[1738703422326,0.1357,98077.0,98062.0,0.00015371]
[1738703422564,0.152951,98071.0,98062.0,0.00015371]
[1738703422789,0.002,98068.0,98062.0,0.00015371]
[1738703423000,0.152962,98063.0,98062.0,0.00015371]
[1738703423210,0.1544918,98063.0,98062.0,0.00015371]
[1738703424749,0.1574918,98063.0,98062.0,0.00015371]
[1738703424951,0.28287686,98063.0,98062.0,0.00015371]
[1738703425152,0.27834706,98063.0,98062.0,0.00015371]
[1738703425367,0.28434706,98063.0,98062.0,0.00015371]
[1738703425573,0.28034706,98063.0,98062.0,0.00015371]
[1738703425781,0.154962,98063.0,98062.0,0.00015371]
[1738703425995,0.1564918,98063.0,98062.0,0.00015371]
[1738703426406,0.31049185,98063.0,98062.0,0.00015371]
[1738703426628,0.306962,98063.0,98062.0,0.00015371]
[1738703427054,0.308962,98063.0,98062.0,0.00015371]
[1738703427468,0.306962,98063.0,98062.0,0.00015371]
[1738703427887,0.315962,98063.0,98062.0,0.00115371]
[1738703428113,0.013,98063.0,98062.0,0.00115371]
[1738703428338,0.013,98063.0,98062.0,0.25650277]
[1738703428761,0.09047392,98091.0,98062.0,0.10253877]
[1738703428968,0.08158811,98087.0,98064.0,0.203948]
[1738703429182,0.08158811,98087.0,98083.0,0.152931]
[1738703429367,0.09047392,98091.0,98065.0,0.10238506]
[1738703429577,0.09047392,98091.0,98087.0,0.152925]
[1738703429578,0.0001068,98088.0,98087.0,0.152925]
[1738703430558,0.0001068,98088.0,98087.0,0.25531006]
[1738703431218,0.0031068,98088.0,98087.0,0.25531006]
[1738703431552,0.0001068,98088.0,98087.0,0.25531006]
[1738703431758,0.0021068,98088.0,98087.0,0.25531006]
[1738703431956,0.0081068,98088.0,98087.0,0.25531006]
[1738703432163,0.0021068,98088.0,98087.0,0.25531006]
[1738703432569,0.0061068,98088.0,98087.0,0.25531006]
[1738703432928,0.0021068,98088.0,98087.0,0.25531006]
[1738703433137,0.0021068,98088.0,98082.0,0.203909]
[1738703433138,0.0061068,98088.0,98044.0,0.08158811]
[1738703433339,0.0061068,98088.0,98067.0,0.00963553]
[1738703433538,0.0081068,98088.0,98086.0,0.152926]
[1738703433747,0.0101068,98088.0,98084.0,0.152928]
[1738703433898,0.0081068,98088.0,98084.0,0.152928]
[1738703434104,0.0081068,98088.0,98070.0,0.560821]
[1738703434304,0.0081068,98088.0,98071.0,0.10238506]
[1738703434652,0.2120058,98088.0,98076.0,0.203922]
[1738703434819,0.152942,98077.0,98068.0,0.152954]
[1738703435007,0.152942,98077.0,98069.0,0.152953]
[1738703435169,0.152939,98078.0,98068.0,0.10238506]
[1738703435373,0.0001068,98088.0,98068.0,0.10238506]
[1738703435583,0.0011068,98088.0,98074.0,0.152944]
[1738703435783,0.0011068,98088.0,98076.0,0.001]
[1738703436034,0.0011068,98088.0,98075.0,0.10238506]
[1738703436035,0.152931,98084.0,98069.0,0.2142123]
[1738703436250,0.0011068,98088.0,98070.0,0.10238506]
[1738703436251,0.2039,98087.0,98070.0,0.10238506]
[1738703436448,0.00152931,98086.0,98068.0,0.001]
[1738703436647,0.00960149,98087.0,98062.0,0.00037799]
[1738703436879,0.152962,98063.0,98062.0,0.00037799]
[1738703437503,0.302962,98063.0,98062.0,0.00037799]
[1738703437923,0.49943196,98063.0,98062.0,0.00037799]
[1738703438102,0.49943196,98063.0,98030.0,0.0001066]
[1738703438103,0.153012,98031.0,98030.0,0.0001066]
[1738703438342,0.165292,98031.0,98030.0,0.0001066]
[1738703438543,0.165292,98031.0,98030.0,0.00015765]
[1738703438544,0.31682229,98031.0,98030.0,0.00015765]
[1738703438746,0.315292,98031.0,98030.0,0.00015765]
[1738703438879,0.44067706,98031.0,98030.0,0.00015765]
[1738703439081,0.64140647,98031.0,98030.0,0.00015765]
[1738703439284,0.65313596,98031.0,98030.0,0.00015765]
[1738703439742,0.66313596,98031.0,98030.0,0.00015765]
[1738703440154,0.59140655,98031.0,98030.0,0.00015765]
[1738703440355,0.59340655,98031.0,98030.0,0.00015765]
[1738703440711,0.57912655,98031.0,98030.0,0.00015765]
[1738703440915,0.48882655,98031.0,98030.0,0.00015765]
[1738703441136,0.49582655,98031.0,98030.0,0.00115765]
[1738703441517,0.49582655,98031.0,98030.0,0.00015765]
[1738703441751,0.57843951,98031.0,98030.0,0.00015765]
[1738703442058,0.57843951,98031.0,98030.0,0.00115765]
[1738703442059,0.60743951,98031.0,98030.0,0.00115765]
[1738703442260,0.61643951,98031.0,98030.0,0.00115765]
[1738703442424,0.60743951,98031.0,98030.0,0.00115765]
[1738703442661,0.51482655,98031.0,98030.0,0.00115765]
[1738703442838,0.52482655,98031.0,98030.0,0.00115765]
[1738703443048,0.51582655,98031.0,98030.0,0.00115765]
[1738703443253,0.50682655,98031.0,98030.0,0.00015765]
[1738703444121,0.49582655,98031.0,98030.0,6.5e-07]
[1738703444330,0.50482655,98031.0,98030.0,6.5e-07]
[1738703444479,0.50810655,98031.0,98030.0,6.5e-07]
[1738703444684,0.31382655,98031.0,98030.0,6.5e-07]
[1738703444892,0.183292,98031.0,98030.0,6.5e-07]
[1738703445291,0.17582224,98031.0,98030.0,6.5e-07]
[1738703445565,0.2782073,98031.0,98030.0,6.5e-07]
[1738703445741,0.42667706,98031.0,98030.0,6.5e-07]
[1738703445902,0.312012,98031.0,98030.0,6.5e-07]
[1738703446533,0.321012,98031.0,98030.0,6.5e-07]
[1738703446801,0.018,98031.0,98030.0,6.5e-07]
[1738703447028,0.009,98031.0,98030.0,6.5e-07]
[1738703447565,0.018,98031.0,98030.0,6.5e-07]
[1738703447911,0.009,98031.0,98030.0,0.10238571]
[1738703448109,0.329642,98067.0,98030.0,0.10238571]
[1738703448110,0.203963,98057.0,98030.0,0.10238571]
[1738703448376,0.203958,98059.0,98031.0,0.10238506]
[1738703448644,0.01228,98085.0,98043.0,0.10238506]
[1738703448891,0.152958,98066.0,98058.0,0.152969]
[1738703449145,0.15298,98052.0,98043.0,0.30637506]
[1738703449310,0.00968747,98075.0,98038.0,0.204001]
[1738703449311,0.00152981,98051.0,98038.0,0.204001]
[1738703449486,0.152985,98049.0,98041.0,0.152996]
[1738703449688,0.10391487,98062.0,98030.0,6.5e-07]
[1738703449689,0.00112673,98051.0,98030.0,6.5e-07]
[1738703449902,0.173,98061.0,98034.0,0.153007]
[1738703449903,0.023,98056.0,98034.0,0.153007]
[1738703450105,0.00152996,98055.0,98030.0,0.20401865]
[1738703450303,0.00152996,98054.0,98030.0,0.22443118]
[1738703450492,0.152994,98043.0,98035.0,0.153005]
[1738703450693,0.152996,98042.0,98032.0,0.153011]
[1738703450868,0.20399,98044.0,98030.0,6.5e-07]
[1738703451115,0.00152996,98043.0,98030.0,6.5e-07]
[1738703451469,0.153012,98032.0,98030.0,6.5e-07]
[1738703451617,0.0015301,98031.0,98030.0,6.5e-07]
[1738703452509,0.0138101,98031.0,98030.0,6.5e-07]
[1738703452731,0.41926506,98031.0,98030.0,6.5e-07]
[1738703452938,0.52687123,98031.0,98030.0,0.00022493]
[1738703453090,0.52687123,98031.0,98030.0,9.3e-07]
[1738703453294,0.53687123,98031.0,98030.0,9.3e-07]
[1738703453492,0.54687123,98031.0,98030.0,9.3e-07]
[1738703453735,0.15,98024.0,97976.0,0.08158811]
[1738703453941,0.153059,98001.0,98000.0,0.02505107]
[1738703454184,0.42997482,98001.0,98000.0,0.02505107]
[1738703454399,0.58534441,98001.0,98000.0,0.02505107]
[1738703455376,0.56624098,98001.0,98000.0,0.02505107]
[1738703455577,0.56624098,98001.0,98000.0,0.02605107]
[1738703455774,0.66427099,98001.0,98000.0,0.02605107]
[1738703456028,0.67427099,98001.0,98000.0,0.02605107]
[1738703456235,0.68427099,98001.0,98000.0,0.02605107]
[1738703456711,0.68427099,98001.0,98000.0,0.02505107]
[1738703456863,0.58624098,98001.0,98000.0,0.02505107]
[1738703457067,0.60424098,98001.0,98000.0,0.02505107]
[1738703457272,0.58524098,98001.0,98000.0,0.02505107]
[1738703457473,0.58624098,98001.0,98000.0,0.02505107]
[1738703457692,0.59524098,98001.0,98000.0,0.02505107]
[1738703457910,0.60424098,98001.0,98000.0,0.02505107]
[1738703458335,0.61324098,98001.0,98000.0,0.02505107]
[1738703458525,0.59424098,98001.0,98000.0,0.02505107]
[1738703458732,0.58424098,98001.0,98000.0,0.02505107]
[1738703458934,0.59324098,98001.0,98000.0,0.02505107]
[1738703459288,0.59424098,98001.0,98000.0,0.02505107]
[1738703459486,0.59324098,98001.0,98000.0,0.02505107]
[1738703459709,0.60324098,98001.0,98000.0,0.02505107]
[1738703459935,0.59324098,98001.0,98000.0,0.02505107]
[1738703460116,0.57624098,98001.0,98000.0,0.02505107]
[1738703460353,0.01,97999.0,97974.0,0.00022428]
[1738703460562,0.326095,97978.0,97977.0,0.00020579]
[1738703460732,0.42848006,97978.0,97977.0,0.00020579]
[1738703460934,0.44076006,97978.0,97977.0,0.00020579]
[1738703461138,0.44076006,97978.0,97940.0,0.0001066]
[1738703461139,0.01,97970.0,97940.0,0.0001066]
[1738703461363,0.408517,97964.0,97963.0,4.5e-07]
[1738703461573,0.52090206,97964.0,97963.0,4.5e-07]
[1738703461994,0.53090206,97964.0,97963.0,4.5e-07]
[1738703462172,0.51090206,97964.0,97963.0,4.5e-07]
[1738703462368,0.52318206,97964.0,97963.0,4.5e-07]
[1738703462569,0.52318206,97964.0,97940.0,0.0001066]
[1738703462570,0.326153,97941.0,97940.0,0.0001066]
[1738703462776,0.42853806,97941.0,97940.0,0.0001066]
[1738703463821,0.43753806,97941.0,97940.0,0.0001066]
[1738703463997,0.335153,97941.0,97940.0,0.0001066]
[1738703464211,0.344153,97941.0,97940.0,0.0001066]
[1738703464413,0.35390198,97941.0,97940.0,0.0001066]
[1738703465395,0.321153,97941.0,97940.0,0.0001066]
[1738703465629,0.018,97941.0,97940.0,0.0001066]
[1738703465833,0.162153,97941.0,97940.0,0.0001066]
[1738703466440,0.009,97941.0,97940.0,0.1532606]
[1738703466659,0.009,97941.0,97940.0,0.0001066]
[1738703466860,0.00971587,97958.0,97940.0,0.0001066]
[1738703467113,0.018,97941.0,97940.0,0.1532606]
[1738703467481,0.018,97941.0,97940.0,0.0001066]
[1738703467482,0.153153,97941.0,97940.0,0.0001066]
[1738703467687,0.1774683,97941.0,97940.0,0.0001066]
[1738703468024,0.193,97941.0,97940.0,0.0001066]
[1738703468204,0.1776847,97941.0,97940.0,0.0001066]
[1738703468409,0.15,97951.0,97940.0,0.0001066]
[1738703468410,0.153149,97944.0,97940.0,0.0001066]
[1738703468601,0.153139,97951.0,97940.0,0.0001066]
[1738703468807,0.00961263,97957.0,97940.0,0.0001066]
[1738703469055,0.023,97954.0,97940.0,0.0001066]
[1738703469189,0.00068888,97964.0,97940.0,0.10249166]
[1738703469403,0.003,97941.0,97940.0,0.45985166]
[1738703469884,0.00068888,97964.0,97951.0,0.153137]
[1738703470117,0.00068888,97964.0,97940.0,0.30769766]
[1738703470118,0.08158811,97963.0,97940.0,0.10349166]
[1738703470313,0.009,97954.0,97941.0,0.10238506]
[1738703470432,0.009,97954.0,97953.0,0.153134]
[1738703470635,0.08158811,97963.0,97941.0,0.10238506]
[1738703470893,0.08158811,97963.0,97958.0,0.153125]
[1738703471069,0.00868888,97964.0,97958.0,0.153125]
[1738703471274,0.00868888,97964.0,97959.0,0.153124]
[1738703471478,0.00868888,97964.0,97942.0,0.01024917]
[1738703471659,0.00868888,97964.0,97958.0,0.153126]
[1738703471855,0.00868888,97964.0,97953.0,0.204178]
[1738703472128,0.153119,97963.0,97956.0,0.153128]
[1738703472266,0.00153119,97962.0,97944.0,0.204198]
[1738703472466,0.153153,97941.0,97940.0,0.0001066]
[1738703472688,0.204167,97959.0,97940.0,0.0001066]
[1738703472848,0.153123,97960.0,97941.0,0.204204]
[1738703473056,0.00068888,97964.0,97942.0,0.02043106]
[1738703473313,0.00153136,97963.0,97951.0,0.153136]
[1738703473518,0.00068888,97964.0,97951.0,0.10238506]
[1738703473796,0.009,97963.0,97952.0,0.204181]
[1738703473998,0.00153118,97962.0,97948.0,0.15314]
[1738703474197,0.15315,97943.0,97940.0,0.0001066]
[1738703474399,0.00153149,97942.0,97940.0,0.0001066]
[1738703474610,0.153153,97941.0,97940.0,0.0001066]
[1738703474816,0.2800699,97941.0,97940.0,0.0001066]
[1738703475015,0.40553806,97941.0,97940.0,0.0001066]
[1738703475240,0.42853806,97941.0,97940.0,0.0001066]
[1738703475865,0.326153,97941.0,97940.0,0.0001066]
[1738703476273,0.176153,97941.0,97940.0,0.0001066]
[1738703476499,0.17868477,97941.0,97940.0,0.0001066]
[1738703476704,0.154153,97941.0,97940.0,0.0001066]
[1738703476903,0.18668468,97941.0,97940.0,0.0001066]
[1738703477117,0.009,97941.0,97940.0,0.1532606]
[1738703477247,0.018,97941.0,97940.0,0.0001066]
[1738703477452,0.018,97941.0,97940.0,0.1532606]
[1738703477660,0.15314,97950.0,97940.0,0.0001066]
[1738703478011,0.00153142,97955.0,97943.0,0.15315]
[1738703478210,0.00153142,97955.0,97940.0,0.0001066]
[1738703478211,0.00068888,97964.0,97940.0,0.0001066]
[1738703478412,0.153133,97954.0,97940.0,0.0001066]
[1738703478833,0.00153142,97961.0,97940.0,0.0001066]
[1738703479035,0.153153,97941.0,97940.0,0.0001066]
[1738703479414,0.17768471,97941.0,97940.0,0.0001066]
[1738703479669,0.00153171,97941.0,97940.0,0.0001066]
[1738703479802,0.153113,97967.0,97958.0,0.153126]
[1738703480004,0.009,97941.0,97940.0,0.11203504]
[1738703480235,0.009,97941.0,97940.0,0.44507046]
[1738703480433,0.08158811,97989.0,97942.0,0.01]
[1738703480667,0.08158811,97979.0,97963.0,0.153119]
[1738703480901,0.08158811,97979.0,97963.0,0.25550406]
[1738703481085,0.00968888,97964.0,97963.0,0.25550406]
[1738703481755,0.08158811,98001.0,97980.0,0.153092]
[1738703481986,0.08158811,98001.0,97980.0,0.25557587]
[1738703482191,0.08158811,98001.0,97980.0,0.10248387]
[1738703482391,0.08158811,98001.0,98000.0,0.153061]
[1738703482597,0.08158811,98001.0,97998.0,0.204084]
[1738703482794,0.08158811,98001.0,97987.0,0.10238506]
[1738703482795,0.00153063,98001.0,97987.0,0.10238506]
[1738703482996,0.0911987,98002.0,97995.0,0.153068]
[1738703483155,0.2442577,98002.0,97993.0,0.153071]
[1738703483353,0.00153062,98001.0,97980.0,9.881e-05]
[1738703483696,0.153067,97996.0,97988.0,0.204105]
[1738703483838,0.00253062,98001.0,97980.0,0.00209881]
[1738703483839,0.023,97999.0,97980.0,9.881e-05]
[1738703484041,0.00253062,98001.0,97980.0,9.881e-05]
[1738703484042,0.001,98001.0,97995.0,0.001]
[1738703484399,0.0911987,98002.0,98001.0,0.153059]
[1738703484831,0.0911987,98002.0,97993.0,0.003]
[1738703485035,0.153069,97995.0,97993.0,0.003]
[1738703485230,0.0015307,98001.0,97993.0,0.003]
[1738703485389,0.023,98001.0,97993.0,0.003]
[1738703485591,0.023,97999.0,97980.0,9.881e-05]
[1738703485796,0.00153082,97998.0,97980.0,0.00509881]
[1738703486025,0.15309,97982.0,97980.0,0.00409881]
[1738703486227,0.00153086,97981.0,97980.0,0.00409881]
[1738703486474,0.023,97992.0,97980.0,9.881e-05]
[1738703486682,0.15309,97981.0,97980.0,0.00309881]
[1738703486804,0.204069,98006.0,97980.0,0.00409881]
[1738703487009,0.153073,97993.0,97984.0,0.153085]
[1738703487204,0.00153079,98004.0,97981.0,0.204121]
[1738703487423,0.00153079,98004.0,97980.0,9.881e-05]
[1738703487424,0.002,97981.0,97980.0,0.00309881]
[1738703487623,0.15509,97981.0,97980.0,0.00309881]
[1738703487920,0.002,97981.0,97980.0,0.00309881]
[1738703488361,0.15509,97981.0,97980.0,0.00309881]
[1738703488519,0.002,97981.0,97980.0,0.00309881]
[1738703488726,0.023,97990.0,97980.0,9.881e-05]
[1738703489034,0.15309,97981.0,97980.0,9.881e-05]
[1738703489456,0.15462108,97981.0,97980.0,9.881e-05]
[1738703489689,0.15662108,97981.0,97980.0,9.881e-05]
[1738703489855,0.15462108,97981.0,97980.0,0.00209881]
[1738703490257,0.15862108,97981.0,97980.0,9.881e-05]
[1738703490609,0.15862108,97981.0,97980.0,0.00109881]
[1738703490783,0.16762108,97981.0,97980.0,0.00109881]
[1738703491019,0.16762108,97981.0,97956.0,0.204173]
[1738703491020,0.01453108,97981.0,97962.0,0.204159]
[1738703491217,0.01453108,97981.0,97956.0,0.204173]
[1738703491218,0.01453108,97981.0,97974.0,0.1531]
[1738703491370,0.013,97981.0,97963.0,0.10238506]
[1738703491599,0.12691614,97980.0,97956.0,0.000141]
[1738703491810,0.153128,97957.0,97956.0,0.000141]
[1738703492205,0.204156,97965.0,97956.0,0.000141]
[1738703492206,0.204135,97975.0,97956.0,0.000141]
[1738703492553,0.204137,97973.0,97956.0,0.000141]
[1738703492765,0.153123,97961.0,97956.0,0.000141]
[1738703492969,0.153124,97960.0,97956.0,0.005141]
[1738703493327,0.00153128,97959.0,97956.0,0.000141]
[1738703493532,0.153128,97957.0,97956.0,0.000141]
[1738703493687,0.176128,97957.0,97956.0,0.001141]
[1738703493897,0.10238506,97970.0,97956.0,0.001141]
[1738703494115,0.006,97973.0,97956.0,0.001141]
[1738703494316,0.153128,97957.0,97956.0,0.001141]
[1738703495472,0.153128,97957.0,97956.0,0.000141]
[1738703495708,0.153128,97957.0,97956.0,0.002141]
[1738703495923,0.157128,97957.0,97956.0,0.002141]
[1738703496231,0.157128,97957.0,97956.0,0.000141]
[1738703496438,0.153128,97957.0,97956.0,0.001141]
[1738703496851,0.003,97957.0,97956.0,0.001141]
[1738703497482,0.179128,97957.0,97956.0,0.001141]
[1738703497907,0.17221401,97957.0,97956.0,0.000141]
[1738703498485,0.17221401,97957.0,97956.0,0.003141]
[1738703499036,0.156128,97957.0,97956.0,0.003141]
[1738703499237,0.2800445,97957.0,97956.0,0.000141]
[1738703499437,0.27851306,97957.0,97956.0,0.002141]
[1738703499904,0.28351306,97957.0,97956.0,0.002141]
[1738703500114,0.27851306,97957.0,97956.0,0.002141]
[1738703500525,0.27851306,97957.0,97956.0,0.0022479]
[1738703500899,0.27851306,97957.0,97956.0,0.0002479]
[1738703501248,0.27851306,97957.0,97956.0,0.0012479]
[1738703501564,0.35542517,97957.0,97956.0,0.0012479]
[1738703501740,0.35542517,97957.0,97956.0,0.0002479]
[1738703501943,0.28551306,97957.0,97956.0,0.0022479]
[1738703502141,0.28852028,97957.0,97956.0,0.0022479]
[1738703502346,0.18613522,97957.0,97956.0,0.0022479]
[1738703502587,0.19166673,97957.0,97956.0,0.0002479]
[1738703502791,0.18766673,97957.0,97956.0,0.0002479]
[1738703502969,0.00153151,97957.0,97956.0,0.0012479]
[1738703503170,0.007,97957.0,97956.0,0.0012479]
[1738703503733,0.007,97957.0,97956.0,0.1543769]
[1738703504092,0.007,97957.0,97956.0,0.1533769]
[1738703504657,0.01892133,97960.0,97957.0,0.153126]
[1738703504774,0.01892133,97960.0,97956.0,0.0002479]
[1738703504981,0.00153132,97959.0,97956.0,0.0002479]
[1738703505241,0.00153132,97959.0,97956.0,0.0032479]
[1738703505410,0.001,97957.0,97956.0,0.0032479]
[1738703505615,0.001,97957.0,97956.0,0.0002479]
[1738703505814,0.023,97968.0,97956.0,0.0002479]
[1738703506052,0.007,97960.0,97956.0,0.0012479]
[1738703506260,0.007,97960.0,97959.0,0.153125]
[1738703506585,0.023,97973.0,97956.0,0.2054189]
[1738703506786,0.153113,97967.0,97960.0,0.153123]
[1738703506914,0.153116,97965.0,97958.0,0.153125]
[1738703507122,0.204123,97980.0,97956.0,0.0012479]
[1738703507333,0.153116,97965.0,97957.0,0.204171]
[1738703507896,0.153114,97967.0,97958.0,0.204169]
[1738703508134,0.00153124,97978.0,97958.0,0.22491069]
[1738703508338,0.20565818,97978.0,97960.0,0.153123]
[1738703508491,0.002,97965.0,97964.0,0.153117]
[1738703508868,0.01228,97978.0,97956.0,0.0002479]
[1738703509071,0.002,97967.0,97957.0,0.10238506]
[1738703509271,0.002,97967.0,97966.0,0.153114]
[1738703509630,0.08158811,97992.0,97966.0,0.10238506]
[1738703509829,0.08158811,97992.0,97958.0,0.002]
[1738703509830,0.08158811,97992.0,97991.0,0.153075]
[1738703510037,0.0911987,97997.0,97996.0,0.153067]
[1738703510431,0.0911987,97997.0,97996.0,0.40545206]
[1738703510945,0.08158811,98022.0,98000.0,0.303061]
[1738703511146,0.08158811,98022.0,98000.0,0.25238506]
[1738703511323,0.08158811,98022.0,98021.0,0.153028]
[1738703511581,0.0125045,98061.0,98031.0,0.153012]
[1738703511790,0.00152999,98054.0,98031.0,0.10238506]
[1738703511989,0.0125045,98061.0,98038.0,0.153001]
[1738703511990,0.0002245,98061.0,98038.0,0.153001]
[1738703512220,0.0002245,98061.0,98038.0,0.25538606]
[1738703512425,0.0002245,98061.0,98038.0,0.50712757]
[1738703512804,0.0002245,98061.0,98038.0,0.50726857]
[1738703513992,0.0002245,98061.0,98038.0,0.40552706]
[1738703514397,0.0002245,98061.0,98038.0,0.40852706]
[1738703514559,0.0002245,98061.0,98038.0,0.41858288]
[1738703514760,0.0002245,98061.0,98038.0,0.42158288]
[1738703515067,0.0002245,98061.0,98038.0,0.41558288]
[1738703515268,0.0002245,98061.0,98038.0,0.5230776]
[1738703515482,0.0011068,98039.0,98038.0,0.5260776]
[1738703515900,0.0001068,98039.0,98038.0,0.5230776]
[1738703516696,0.0001068,98039.0,98038.0,0.41558288]
[1738703516908,0.0001068,98039.0,98038.0,0.41958288]
[1738703517106,0.0001068,98039.0,98038.0,0.26958288]
[1738703517561,0.0001068,98039.0,98038.0,0.26558288]
[1738703517918,0.0001068,98039.0,98038.0,0.27358288]
[1738703518116,0.0001068,98039.0,98038.0,0.36214407]
[1738703518296,0.0001068,98039.0,98038.0,0.35714407]
[1738703518454,0.0001068,98039.0,98038.0,0.37891894]
[1738703518663,0.0001068,98039.0,98038.0,0.53191894]
[1738703519487,0.0001068,98039.0,98038.0,0.52891894]
[1738703519810,0.0001068,98039.0,98038.0,0.43935775]
[1738703520033,0.0001068,98039.0,98038.0,0.16719782]
[1738703520203,0.0001068,98039.0,98038.0,0.157142]
[1738703520459,0.0001068,98039.0,98038.0,0.160142]
[1738703520627,0.0001068,98039.0,98038.0,0.25852706]
[1738703520835,0.0001068,98039.0,98038.0,0.3465605]
[1738703521037,0.0001068,98039.0,98038.0,0.5005605]
[1738703521248,8e-07,98039.0,98038.0,0.5005605]
[1738703521447,0.0002245,98061.0,98060.0,0.152967]
[1738703521604,0.0002245,98061.0,98060.0,0.25535206]
[1738703521814,0.0002245,98061.0,98060.0,0.32167947]
[1738703522334,0.0002245,98061.0,98060.0,0.25535206]
[1738703522655,0.0002245,98061.0,98060.0,0.155967]
[1738703523056,0.0002245,98061.0,98060.0,0.25835206]
[1738703523215,0.0002245,98061.0,98060.0,0.26235206]
[1738703523418,5e-07,98061.0,98060.0,0.4192295]
[1738703523623,0.0002245,98079.0,98067.0,0.15]
[1738703523957,0.0002245,98079.0,98078.0,0.302939]
[1738703524137,0.0002245,98079.0,98078.0,0.40532406]
[1738703525216,0.00068951,98079.0,98078.0,0.40532406]
[1738703525565,0.0001068,98088.0,98078.0,0.40532406]
[1738703525566,3.1e-07,98088.0,98087.0,0.302925]
[1738703525703,0.0146802,98103.0,98099.0,0.302906]
[1738703526099,0.0146802,98103.0,98099.0,0.40529106]
[1738703526820,0.0146802,98103.0,98099.0,0.40929106]
[1738703527323,0.0146802,98103.0,98099.0,0.156906]
[1738703527482,0.0146802,98103.0,98099.0,0.008]
[1738703527659,0.0146802,98103.0,98099.0,0.160906]
[1738703527875,0.152903,98101.0,98099.0,0.004]
[1738703528038,0.0146802,98103.0,98099.0,0.156906]
[1738703528239,0.0146802,98103.0,98099.0,0.155906]
[1738703528435,0.0146802,98103.0,98099.0,0.158906]
[1738703528874,0.0146802,98103.0,98099.0,0.155906]
[1738703529327,0.0146802,98103.0,98099.0,0.157906]
[1738703529541,0.0146802,98103.0,98099.0,0.1940846]
[1738703529952,0.0146802,98103.0,98099.0,0.155906]
[1738703530157,0.0146802,98103.0,98099.0,0.152906]
[1738703530356,0.0146802,98103.0,98099.0,0.154906]
[1738703530816,0.0146802,98103.0,98099.0,0.25729106]
[1738703531019,0.0146802,98103.0,98099.0,0.40529106]
[1738703531142,7e-07,98103.0,98102.0,0.302902]
[1738703531344,7e-07,98103.0,98102.0,0.40528706]
[1738703532582,7e-07,98103.0,98102.0,0.40828706]
[1738703532799,7e-07,98103.0,98102.0,0.40528706]